lending/lending_fUSD_20251107
["ID","MTS","AMOUNT","RATE_DAILY","PERIOD"]
[393348927,1762504244125,-810.85902672,0.00018868,2]
[393348928,1762504244135,-1500.0,0.00018868,2]
[393348929,1762504244144,-1500.0,0.00018868,2]
[393348930,1762504244154,-1373.81755517,0.00018868,2]
[393348931,1762504244164,-644.81873748,0.00018868,2]
[393348932,1762504244174,-477.99034883,0.00018908,2]
[393348933,1762504244185,-500.0,0.00018948,2]
[393348934,1762504244196,-407.89774482,0.00018948,2]
[393348935,1762504244206,-584.0,0.00018957,2]
[393348936,1762504244216,-576.0,0.00018957,2]
[393348937,1762504244228,-166.66,0.00018964,2]
[393348938,1762504244239,-500.0,0.00018973,2]
[393348939,1762504244248,-150.07,0.0001899,2]
[393348940,1762504244258,-150.07,0.0001899,2]
[393348941,1762504244267,-150.07,0.0001899,2]
[393348942,1762504244277,-150.07,0.0001899,2]
[393348943,1762504244288,-150.07,0.0001899,2]
[393348944,1762504244298,-578.81216164,0.00018999,2]
[393348945,1762504244307,-437.07502368,0.00018999,2]
[393348946,1762504244317,-624.88528703,0.00019,2]
[393348947,1762504244326,-1789.02943637,0.00019,2]
[393348948,1762504244335,-159738.64882566,0.00019,2]
[393348949,1762504244344,-151.0,0.00019,2]
[393348950,1762504244354,-151.0,0.00019,2]
[393348951,1762504244363,-155.843168,0.00019,2]
[393348952,1762504244372,-151.0,0.00019,2]
[393348953,1762504244382,-151.0,0.00019,2]
[393348954,1762504244391,-300.658385,0.00019,2]
[393348955,1762504244401,-163.557123,0.00019,2]
[393348956,1762504244410,-151.0,0.00019,2]
[393348957,1762504244419,-151.0,0.00019,2]
[393348958,1762504244429,-151.0,0.00019,2]
[393348959,1762504244438,-151.0,0.00019,2]
[393348960,1762504244448,-151.0,0.00019,2]
[393348961,1762504244457,-151.0,0.00019,2]
[393348962,1762504244467,-170.209544,0.00019,2]
[393348963,1762504244476,-151.0,0.00019,2]
[393348964,1762504244487,-151.609357,0.00019,2]
[393348965,1762504244498,-151.0,0.00019,2]
[393348966,1762504244507,-152.888891,0.00019,2]
[393348967,1762504244517,-151.0,0.00019,2]
[393348968,1762504244527,-4727.782587,0.00019,2]
[393348969,1762504244536,-4727.782587,0.00019,2]
[393348970,1762504244545,-155.267409,0.00019,2]
[393348971,1762504244555,-151.0,0.00019,2]
[393348972,1762504244565,-208.5743064,0.00019,5]
[393348973,1762504244574,-151.0,0.00019,2]
[393348974,1762504244583,-151.0,0.00019,2]
[393348975,1762504244592,-100115.69746685,0.00019,2]
[393348976,1762504244600,-151.0,0.00019,2]
[393348977,1762504244614,-5120.67650425,0.00019,2]
[393348978,1762504244623,-1630.140865,0.00019,2]
[393348979,1762504244633,-151.0,0.00019,2]
[393348980,1762504244642,-1630.140865,0.00019,2]
[393348981,1762504244651,-151.0,0.00019,2]
[393348982,1762504244661,-1630.140865,0.00019,2]
[393348983,1762504244670,-151.0,0.00019,2]
[393348984,1762504244680,-224.81491,0.00019,2]
[393348985,1762504244690,-368.375632,0.00019,2]
[393348986,1762504244699,-1630.140865,0.00019,2]
[393348987,1762504244708,-151.0,0.00019,2]
[393348988,1762504244717,-368.375632,0.00019,2]
[393348989,1762504244726,-368.375632,0.00019,2]
[393348990,1762504244736,-151.0,0.00019,2]
[393348991,1762504244745,-368.375632,0.00019,2]
[393348992,1762504244754,-1263.677778,0.00019,2]
[393348993,1762504244763,-1263.677778,0.00019,2]
[393348994,1762504244772,-1263.677778,0.00019,2]
[393348995,1762504244781,-1263.677778,0.00019,2]
[393348996,1762504244791,-151.0,0.00019,2]
[393348997,1762504244800,-151.0,0.00019,2]
[393348998,1762504244809,-151.0,0.00019,2]
[393348999,1762504244818,-151.0,0.00019,2]
[393349000,1762504244828,-151.0,0.00019,2]
[393349001,1762504244837,-151.0,0.00019,2]
[393349002,1762504244846,-151.0,0.00019,2]
[393349003,1762504244856,-151.0,0.00019,2]
[393349004,1762504244866,-151.0,0.00019,2]
[393349005,1762504244876,-151.0,0.00019,2]
[393349006,1762504244886,-151.0,0.00019,2]
[393349007,1762504244896,-296.415688,0.00019,2]
[393349008,1762504244906,-151.0,0.00019,2]
[393349009,1762504244916,-151.0,0.00019,2]
[393349010,1762504244926,-151.0,0.00019,2]
[393349011,1762504244935,-151.0,0.00019,2]
[393349012,1762504244945,-151.0,0.00019,2]
[393349013,1762504244954,-151.0,0.00019,2]
[393349014,1762504244963,-300.0,0.00019,2]
[393349015,1762504244976,-407.024462,0.00019,2]
[393349016,1762504244985,-407.024462,0.00019,2]
[393349017,1762504244994,-151.0,0.00019,2]
[393349018,1762504245003,-407.024462,0.00019,2]
[393349019,1762504245014,-659.733632,0.00019,2]
[393349020,1762504245025,-407.024462,0.00019,2]
[393349021,1762504245036,-271.678733,0.00019,2]
[393349022,1762504245046,-659.733632,0.00019,2]
[393349023,1762504245056,-271.678733,0.00019,2]
[393349024,1762504245065,-659.733632,0.00019,2]
[393349025,1762504245074,-271.678733,0.00019,2]
[393349026,1762504245083,-271.678733,0.00019,2]
[393349027,1762504245092,-659.733632,0.00019,2]
[393349028,1762504245102,-151.0,0.00019,2]
[393349029,1762504245111,-151.0,0.00019,2]
[393349030,1762504245121,-13668.34500937,0.00019025,2]
[393349031,1762504245130,-1500.0,0.00019068,2]
[393349032,1762504245141,-500.0,0.00019085,2]
[393349033,1762504245151,-584.0,0.00019094,2]
[393349034,1762504245159,-576.0,0.00019094,2]
[393349035,1762504245168,-150.0,0.00019178,2]
[393349036,1762504245178,-500.0,0.00019222,2]
[393349037,1762504245187,-584.0,0.00019231,2]
[393349038,1762504245196,-576.0,0.00019231,2]
[393349039,1762504245205,-2500.0,0.00019264,2]
[393349040,1762504245215,-1589.0,0.00019297,2]
[393349041,1762504245225,-587.0,0.00019356,2]
[393349042,1762504245235,-587.0,0.00019356,2]
[393349043,1762504245246,-500.0,0.00019359,2]
[393349044,1762504245255,-584.0,0.00019368,2]
[393349045,1762504245268,-576.0,0.00019368,2]
[393349046,1762504245279,-254.16358819,0.00019416,2]
[393349047,1762504245288,-1147.04253758,0.00019416,2]
[393349048,1762504245297,-2087.9034712,0.00019416,2]
[393349049,1762504245307,-383.14812579,0.00019416,2]
[393349050,1762504245318,-1560.77369819,0.00019416,2]
[393349051,1762504245327,-1003.85054346,0.00019416,2]
[393349052,1762504245337,-1000.0,0.00019438,2]
[393349053,1762504245356,-500.0,0.00019496,2]
[393349054,1762504245366,-584.0,0.00019505,2]
[393349055,1762504245375,-576.0,0.00019505,2]
[393349056,1762504245384,-1000.0,0.00019521,2]
[393349057,1762504245393,-13668.34500937,0.00019523,2]
[393349058,1762504245403,-2351.0,0.00019549,2]
[393349059,1762504245413,-166.66,0.00019552,2]
[393349060,1762504245422,-1000.0,0.00019558,2]
[393349061,1762504245433,-273.88446558,0.0001957,2]
[393349062,1762504245443,-2000.0,0.00019616,2]
[393349063,1762504245452,-500.0,0.00019633,2]
[393349064,1762504245462,-584.0,0.00019642,2]
[393349065,1762504245471,-576.0,0.00019642,2]
[393349066,1762504245481,-293.33,0.00019646,2]
[393349067,1762504245490,-250.0,0.00019726,2]
[393349068,1762504245499,-500.0,0.0001977,2]
[393349069,1762504245509,-500.0,0.00019773,2]
[393349070,1762504245518,-209.475628,0.00019773,7]
[393349071,1762504245528,-151.0,0.00019773,7]
[393349072,1762504245538,-151.0,0.00019773,7]
[393349073,1762504245547,-151.0,0.00019773,7]
[393349074,1762504245557,-151.0,0.00019773,7]
[393349075,1762504245566,-151.0,0.00019773,7]
[393349076,1762504245576,-151.0,0.00019773,7]
[393349077,1762504245586,-151.0,0.00019773,7]
[393349078,1762504245596,-151.0,0.00019773,7]
[393349079,1762504245611,-208.051066,0.00019773,7]
[393349080,1762504245620,-151.0,0.00019773,7]
[393349081,1762504245630,-151.0,0.00019773,7]
[393349082,1762504245640,-173.854535,0.00019773,7]
[393349083,1762504245650,-407.024462,0.00019773,7]
[393349084,1762504245659,-407.024462,0.00019773,7]
[393349085,1762504245669,-153.823368,0.00019773,7]
[393349086,1762504245679,-407.024462,0.00019773,7]
[393349087,1762504245689,-659.733632,0.00019773,7]
[393349088,1762504245698,-407.024462,0.00019773,7]
[393349089,1762504245708,-271.678733,0.00019773,7]
[393349090,1762504245717,-659.733632,0.00019773,7]
[393349091,1762504245728,-271.678733,0.00019773,7]
[393349092,1762504245737,-659.733632,0.00019773,7]
[393349093,1762504245747,-271.678733,0.00019773,7]
[393349094,1762504245757,-271.678733,0.00019773,7]
[393349095,1762504245767,-659.733632,0.00019773,7]
[393349096,1762504245777,-151.0,0.00019773,7]
[393349098,1762504245787,-151.0,0.00019773,7]
[393349100,1762504245795,-584.0,0.00019779,2]
[393349102,1762504245805,-576.0,0.00019779,2]
[393349104,1762504245814,-671.2460594,0.00019782,2]
[393349106,1762504245823,-1851.8613287,0.00019782,2]
[393349108,1762504245832,-108227.2195129,0.00019782,2]
[393349110,1762504245841,-301.0420686,0.00019812,2]
[393349112,1762504245851,-206.20054323,0.00019859,2]
[393349114,1762504245860,-205.58440698,0.00019894,2]
[393349116,1762504245869,-500.0,0.00019907,2]
[393349118,1762504245878,-584.0,0.00019916,2]
[393349120,1762504245887,-576.0,0.00019916,2]
[393349122,1762504245896,-109264.24556484,0.0001995,15]
[393349124,1762504245905,-155.140863,0.0001995,7]
[393349126,1762504245914,-151.0,0.0001995,7]
[393349128,1762504245923,-151.0,0.0001995,7]
[393349129,1762504245932,-151.0,0.0001995,7]
[393349130,1762504245941,-151.0,0.0001995,7]
[393349131,1762504245950,-158.628141,0.0001995,7]
[393349132,1762504245959,-151.0,0.0001995,7]
[393349133,1762504245968,-151.0,0.0001995,7]
[393349134,1762504245977,-278.855926,0.0001995,7]
[393349135,1762504245986,-151.0,0.0001995,7]
[393349136,1762504245996,-151.0,0.0001995,7]
[393349137,1762504246005,-162.62384,0.0001995,7]
[393349138,1762504246014,-204.943648,0.0001995,7]
[393349139,1762504246023,-151.0,0.0001995,7]
[393349140,1762504246032,-151.0,0.0001995,7]
[393349141,1762504246041,-151.0,0.0001995,7]
[393349142,1762504246051,-151.0,0.0001995,7]
[393349143,1762504246060,-151.0,0.0001995,7]
[393349144,1762504246069,-154.853143,0.0001995,7]
[393349145,1762504246078,-151.0,0.0001995,7]
[393349146,1762504246088,-151.0,0.0001995,7]
[393349147,1762504246097,-152.751498,0.0001995,7]
[393349148,1762504246106,-212.890596,0.0001995,7]
[393349149,1762504246115,-151.0,0.0001995,7]
[393349150,1762504246125,-151.0,0.0001995,7]
[393349151,1762504246135,-151.0,0.0001995,7]
[393349152,1762504246145,-170.812782,0.0001995,7]
[393349153,1762504246154,-161.013308,0.0001995,7]
[393349154,1762504246163,-161.013308,0.0001995,7]
[393349155,1762504246173,-161.013308,0.0001995,7]
[393349156,1762504246182,-161.013308,0.0001995,7]
[393349157,1762504246192,-151.0,0.0001995,7]
[393349158,1762504246203,-151.0,0.0001995,7]
[393349159,1762504246212,-151.0,0.0001995,7]
[393349160,1762504246221,-184.723214,0.0001995,7]
[393349161,1762504246231,-151.0,0.0001995,7]
[393349162,1762504246241,-164.771008,0.0001995,7]
[393349163,1762504246250,-151.0,0.0001995,7]
[393349164,1762504246259,-236.806063,0.0001995,7]
[393349165,1762504246268,-151.0,0.0001995,7]
[393349166,1762504246278,-171.130794,0.0001995,7]
[393349167,1762504246288,-151.0,0.0001995,7]
[393349168,1762504246298,-151.0,0.0001995,7]
[393349169,1762504246307,-151.000008,0.0001995,7]
[393349170,1762504246317,-154.948938,0.0001995,7]
[393349171,1762504246326,-151.0,0.0001995,7]
[393349172,1762504246335,-163.106762,0.0001995,7]
[393349173,1762504246345,-154.619845,0.0001995,7]
[393349174,1762504246354,-151.0,0.0001995,7]
[393349175,1762504246364,-151.0,0.0001995,7]
[393349176,1762504246373,-151.0,0.0001995,7]
[393349177,1762504246382,-151.0,0.0001995,7]
[393349178,1762504246394,-164.219662,0.0001995,7]
[393349179,1762504246403,-151.0,0.0001995,7]
[393349180,1762504246413,-151.0,0.0001995,7]
[393349181,1762504246422,-151.0,0.0001995,7]
[393349182,1762504246431,-151.0,0.0001995,7]
[393349183,1762504246440,-151.0,0.0001995,7]
[393349184,1762504246450,-151.0,0.0001995,7]
[393349185,1762504246459,-151.0,0.0001995,7]
[393349186,1762504246468,-195.190223,0.0001995,7]
[393349187,1762504246478,-4727.782587,0.0001995,7]
[393349188,1762504246488,-4727.782587,0.0001995,7]
[393349189,1762504246498,-159.507872,0.0001995,7]
[393349190,1762504246508,-151.0,0.0001995,7]
[393349191,1762504246517,-231.493995,0.0001995,7]
[393349192,1762504246530,-166.0127,0.0001995,7]
[393349193,1762504246540,-1630.140865,0.0001995,7]
[393349194,1762504246551,-151.0,0.0001995,7]
[393349195,1762504246561,-1630.140865,0.0001995,7]
[393349196,1762504246570,-151.0,0.0001995,7]
[393349197,1762504246579,-1630.140865,0.0001995,7]
[393349198,1762504246588,-151.0,0.0001995,7]
[393349199,1762504246597,-368.375632,0.0001995,7]
[393349200,1762504246609,-187.739093,0.0001995,7]
[393349201,1762504246618,-1630.140865,0.0001995,7]
[393349202,1762504246627,-368.375632,0.0001995,7]
[393349203,1762504246637,-368.375632,0.0001995,7]
[393349204,1762504246646,-151.0,0.0001995,7]
[393349205,1762504246656,-368.375632,0.0001995,7]
[393349206,1762504246665,-1263.677778,0.0001995,7]
[393349207,1762504246675,-1263.677778,0.0001995,7]
[393349208,1762504246686,-1263.677778,0.0001995,7]
[393349209,1762504246695,-1263.677778,0.0001995,7]
[393349210,1762504246706,-161.742778,0.0001995,7]
[393349211,1762504246716,-159.621312,0.0001995,7]
[393349212,1762504246727,-151.0,0.0001995,7]
[393349213,1762504246737,-151.0,0.0001995,7]
[393349214,1762504246747,-151.0,0.0001995,7]
[393349215,1762504246757,-151.0,0.0001995,7]
[393349216,1762504246767,-151.0,0.0001995,7]
[393349217,1762504246777,-151.0,0.0001995,7]
[393349218,1762504246786,-295.47469,0.0001995,7]
[393349219,1762504246796,-151.0,0.0001995,7]
[393349220,1762504246805,-151.0,0.0001995,7]
[393349221,1762504246815,-151.0,0.0001995,7]
[393349222,1762504246825,-158.617892,0.0001995,7]
[393349223,1762504246836,-407.024462,0.0001995,7]
[393349224,1762504246846,-407.024462,0.0001995,7]
[393349225,1762504246856,-407.024462,0.0001995,7]
[393349226,1762504246866,-659.733632,0.0001995,7]
[393349227,1762504246876,-271.678733,0.0001995,7]
[393349228,1762504246887,-407.024462,0.0001995,7]
[393349229,1762504246897,-659.733632,0.0001995,7]
[393349230,1762504246907,-271.678733,0.0001995,7]
[393349231,1762504246917,-659.733632,0.0001995,7]
[393349232,1762504246927,-271.678733,0.0001995,7]
[393349233,1762504246938,-271.678733,0.0001995,7]
[393349234,1762504246948,-659.733632,0.0001995,7]
[393349235,1762504246959,-151.0,0.0001995,7]
[393349236,1762504246968,-151.0,0.0001995,7]
[393349237,1762504246977,-25361.98694477,0.0002,2]
[393349238,1762504246987,-180379.71891958,0.0002,5]
[393349239,1762504246998,-8300.0,0.0002,4]
[393349240,1762504247138,-3950.0,0.0002,2]
[393349241,1762504247154,-462.96784881,0.0002,20]
[393349242,1762504247164,-2048.58691759,0.0002,14]
[393349243,1762504247174,-7225.11979424,0.0002,2]
[393349244,1762504247185,-1283.0616566,0.0002,2]
[393349245,1762504247194,-7310.04820368,0.0002,2]
[393349246,1762504247204,-2168.59057824,0.0002,3]
[393349247,1762504247213,-151.0,0.0002,7]
[393349248,1762504247222,-10163.70752487,0.0002,2]
[393349249,1762504247231,-1035.63503276,0.0002,2]
[393349250,1762504247241,-2838.06808516,0.0002,2]
[393349251,1762504247251,-1630.140865,0.0002,7]
[393349252,1762504247261,-8731.3976056,0.0002,2]
[393349253,1762504247271,-151.0,0.0002,7]
[393349254,1762504247281,-1630.140865,0.0002,7]
[393349255,1762504247290,-151.0,0.0002,7]
[393349256,1762504247300,-1630.140865,0.0002,7]
[393349257,1762504247310,-151.0,0.0002,7]
[393349258,1762504247319,-368.375632,0.0002,7]
[393349259,1762504247330,-1630.140865,0.0002,7]
[393349260,1762504247340,-368.375632,0.0002,7]
[393349261,1762504247350,-368.375632,0.0002,7]
[393349262,1762504247360,-151.0,0.0002,7]
[393349263,1762504247370,-368.375632,0.0002,7]
[393349264,1762504247379,-1263.677778,0.0002,7]
[393349265,1762504247388,-1263.677778,0.0002,7]
[393349266,1762504247399,-1263.677778,0.0002,7]
[393349267,1762504247409,-1263.677778,0.0002,7]
[393349268,1762504247420,-151.0,0.0002,7]
[393349269,1762504247430,-151.0,0.0002,7]
[393349270,1762504247440,-151.0,0.0002,7]
[393349271,1762504247450,-151.0,0.0002,7]
[393349272,1762504247460,-151.0,0.0002,7]
[393349273,1762504247470,-188.461222,0.0002,7]
[393349274,1762504247480,-151.0,0.0002,7]
[393349275,1762504247490,-151.0,0.0002,7]
[393349276,1762504247500,-1000.0,0.0002,7]
[393349277,1762504247510,-407.024462,0.0002,7]
[393349278,1762504247520,-407.024462,0.0002,7]
[393349279,1762504247531,-407.024462,0.0002,7]
[393349280,1762504247542,-659.733632,0.0002,7]
[393349281,1762504247551,-271.678733,0.0002,7]
[393349282,1762504247561,-407.024462,0.0002,7]
[393349283,1762504247572,-659.733632,0.0002,7]
[393349284,1762504247582,-271.678733,0.0002,7]
[393349285,1762504247592,-659.733632,0.0002,7]
[393349286,1762504247603,-271.678733,0.0002,7]
[393349287,1762504247616,-271.678733,0.0002,7]
[393349288,1762504247626,-659.733632,0.0002,7]
[393349289,1762504247636,-151.0,0.0002,7]
[393349290,1762504247649,-13668.34500937,0.0002002,2]
[393349291,1762504247659,-500.0,0.00020044,2]
[393349292,1762504247669,-584.0,0.00020053,2]
[393349293,1762504247679,-576.0,0.00020053,2]
[393349294,1762504247691,-477.99034883,0.0002006,7]
[393349295,1762504247701,-330.78402074,0.00020068,2]
[393349296,1762504247711,-546.88431363,0.00020087,2]
[393349297,1762504247721,-1000.0,0.00020116,2]
[393349298,1762504247731,-300.0,0.00020133,2]
[393349299,1762504247741,-273.88446558,0.00020133,2]
[393349300,1762504247751,-434.59354482,0.00020133,2]
[393349301,1762504247761,-166.66,0.00020139,2]
[393349302,1762504247771,-1023.22717164,0.00020164,2]
[393349303,1762504247780,-500.0,0.00020181,2]
[393349304,1762504247791,-727.06,0.00020187,2]
[393349305,1762504247801,-584.0,0.0002019,2]
[393349306,1762504247811,-576.0,0.0002019,2]
[393349307,1762504247821,-460.4963854,0.00020201,2]
[393349308,1762504247830,-352.75556532,0.00020274,2]
[393349309,1762504247840,-205.78978621,0.00020296,2]
[393349310,1762504247850,-500.0,0.00020318,2]
[393349311,1762504247859,-1000.0,0.00020321,2]
[393349312,1762504247869,-584.0,0.00020327,2]
[393349313,1762504247879,-576.0,0.00020327,2]
[393349314,1762504247888,-218.34005802,0.00020455,2]
[393349315,1762504247898,-584.0,0.00020464,2]
[393349316,1762504247908,-576.0,0.00020464,2]
[393349317,1762504247918,-477.99034883,0.00020508,7]
[393349318,1762504247928,-151.0,0.00020508,7]
[393349319,1762504247938,-151.0,0.00020508,7]
[393349320,1762504247947,-157.139558,0.00020508,7]
[393349321,1762504247958,-151.0,0.00020508,7]
[393349322,1762504247968,-151.0,0.00020508,7]
[393349323,1762504247978,-151.0,0.00020508,7]
[393349324,1762504247988,-151.0,0.00020508,7]
[393349325,1762504247998,-151.0,0.00020508,7]
[393349326,1762504248007,-151.0,0.00020508,7]
[393349327,1762504248017,-151.0,0.00020508,7]
[393349328,1762504248027,-151.0,0.00020508,7]
[393349329,1762504248037,-151.0,0.00020508,7]
[393349330,1762504248047,-158.673208,0.00020508,7]
[393349331,1762504248057,-151.0,0.00020508,7]
[393349332,1762504248066,-248.739953,0.00020508,7]
[393349333,1762504248076,-156.838166,0.00020508,7]
[393349334,1762504248086,-151.0,0.00020508,7]
[393349335,1762504248096,-159.09701,0.00020508,7]
[393349336,1762504248106,-161.013308,0.00020508,7]
[393349337,1762504248115,-161.013308,0.00020508,7]
[393349338,1762504248125,-161.013308,0.00020508,7]
[393349339,1762504248135,-161.013308,0.00020508,7]
[393349340,1762504248145,-218.966974,0.00020508,7]
[393349341,1762504248154,-158.524006,0.00020508,7]
[393349342,1762504248165,-151.0,0.00020508,7]
[393349343,1762504248174,-152.690055,0.00020508,7]
[393349344,1762504248184,-151.0,0.00020508,7]
[393349345,1762504248194,-160.292634,0.00020508,7]
[393349346,1762504248204,-151.0,0.00020508,7]
[393349347,1762504248214,-151.0,0.00020508,7]
[393349348,1762504248224,-156.582746,0.00020508,7]
[393349349,1762504248235,-13668.34500937,0.00020517,2]
[393349350,1762504248245,-21311.58,0.00020548,2]
[393349351,1762504248255,-151.0,0.00020548,7]
[393349352,1762504248264,-151.0,0.00020548,7]
[393349353,1762504248275,-2702.0,0.00020556,2]
[393349354,1762504248284,-584.0,0.00020601,2]
[393349355,1762504248294,-576.0,0.00020601,2]
[393349356,1762504248303,-293.33,0.00020629,2]
[393349357,1762504248313,-150.0,0.00020686,5]
[393349358,1762504248322,-150.0,0.00020686,5]
[393349359,1762504248331,-274.15835005,0.00020695,2]
[393349360,1762504248341,-22351.71985182,0.000207,2]
[393349361,1762504248351,-206.40674378,0.00020701,2]
[393349362,1762504248360,-166.66,0.00020726,2]
[393349363,1762504248370,-584.0,0.00020738,2]
[393349364,1762504248379,-576.0,0.00020738,2]
[393349365,1762504248389,-1000.0,0.00020795,2]
[393349366,1762504248398,-584.0,0.00020875,2]
[393349367,1762504248408,-576.0,0.00020875,2]
[393349368,1762504248418,-20000.0,0.00021,2]
[393349369,1762504248427,-41417.27131563,0.00021,2]
[393349370,1762504248437,-1182.05722643,0.00021,2]
[393349371,1762504248447,-195.11524369,0.00021,2]
[393349372,1762504248457,-350.0,0.00021,2]
[393349373,1762504248467,-407.024462,0.00021,7]
[393349374,1762504248476,-407.024462,0.00021,7]
[393349375,1762504248485,-407.024462,0.00021,7]
[393349376,1762504248495,-659.733632,0.00021,7]
[393349377,1762504248505,-407.024466,0.00021,7]
[393349378,1762504248514,-271.678733,0.00021,7]
[393349379,1762504248523,-659.733632,0.00021,7]
[393349380,1762504248533,-271.678733,0.00021,7]
[393349381,1762504248542,-271.678733,0.00021,7]
[393349382,1762504248551,-659.733632,0.00021,7]
[393349383,1762504248560,-271.678739,0.00021,7]
[393349384,1762504248570,-659.733641,0.00021,7]
[393349385,1762504248579,-151.0,0.00021,7]
[393349386,1762504248588,-584.0,0.00021012,2]
[393349387,1762504248598,-576.0,0.00021012,2]
[393349388,1762504248613,-13668.34500937,0.00021014,2]
[393349389,1762504248622,-500.0,0.00021041,2]
[393349390,1762504248632,-12397.04,0.00021068,2]
[393349391,1762504248642,-596.76560016,0.00021149,2]
[393349392,1762504248652,-581.95593767,0.00021149,2]
[393349393,1762504248662,-151.0,0.00021149,7]
[393349394,1762504248671,-151.0,0.00021149,7]
[393349395,1762504248682,-151.0,0.00021149,7]
[393349396,1762504248692,-151.0,0.00021149,7]
[393349397,1762504248702,-151.0,0.00021149,7]
[393349398,1762504248711,-151.0,0.00021149,7]
[393349399,1762504248721,-151.0,0.00021149,7]
[393349400,1762504248731,-823.0,0.00021158,2]
[393349401,1762504248741,-823.0,0.00021158,2]
[393349402,1762504248750,-500.0,0.00021218,2]
[393349403,1762504248761,-500.0,0.00021387,2]
[393349404,1762504248770,-3292.0,0.00021477,2]
[393349405,1762504248780,-297.83150041,0.00021493,2]
[393349406,1762504248790,-57433.0218314,0.000215,2]
[393349407,1762504248799,-220.0416091,0.000215,2]
[393349408,1762504248809,-13668.34500937,0.00021511,2]
[393349409,1762504248819,-407.2663696,0.00021577,2]
[393349410,1762504248828,-293.33,0.00021611,2]
[393349411,1762504248838,-1000.0,0.00021731,2]
[393349412,1762504248847,-151.0,0.00021814,7]
[393349413,1762504248856,-166.673318,0.00021814,7]
[393349414,1762504248865,-151.0,0.00021814,7]
[393349415,1762504248874,-156.697005,0.00021814,7]
[393349416,1762504248884,-151.0,0.00021814,7]
[393349417,1762504248894,-151.0,0.00021814,7]
[393349418,1762504248903,-151.0,0.00021814,7]
[393349419,1762504248913,-151.0,0.00021814,7]
[393349420,1762504248922,-151.0,0.00021814,7]
[393349421,1762504248931,-199.484067,0.00021814,7]
[393349422,1762504248940,-151.0,0.00021814,7]
[393349423,1762504248950,-151.0,0.00021814,7]
[393349424,1762504248959,-169.839575,0.00021814,7]
[393349425,1762504248968,-269.713209,0.00021814,7]
[393349426,1762504248977,-4727.782587,0.00021814,7]
[393349427,1762504248987,-4727.782587,0.00021814,7]
[393349428,1762504248995,-184.424729,0.00021814,7]
[393349429,1762504249004,-1630.140865,0.00021814,7]
[393349430,1762504249013,-151.0,0.00021814,7]
[393349431,1762504249022,-1630.140865,0.00021814,7]
[393349432,1762504249032,-151.0,0.00021814,7]
[393349433,1762504249041,-1630.140865,0.00021814,7]
[393349434,1762504249051,-151.0,0.00021814,7]
[393349435,1762504249060,-368.375632,0.00021814,7]
[393349436,1762504249070,-1630.140865,0.00021814,7]
[393349437,1762504249080,-368.375632,0.00021814,7]
[393349438,1762504249090,-368.375632,0.00021814,7]
[393349439,1762504249100,-285.152704,0.00021814,7]
[393349440,1762504249110,-368.375632,0.00021814,7]
[393349441,1762504249121,-1263.677778,0.00021814,7]
[393349442,1762504249131,-1263.677778,0.00021814,7]